fUSD/lending_fUSD_20250720
["ID","MTS","AMOUNT","RATE_DAILY","PERIOD"]
[373589162,1753055456727,-494.35297643,0.00019178,2]
[373589163,1753055456738,-480.0,0.00019178,2]
[373589164,1753055456752,-480.0,0.00019178,2]
[373589165,1753055456761,-441.63536129,0.00019178,2]
[373589166,1753055456772,-480.0,0.00019178,2]
[373589167,1753055456781,-480.0,0.00019178,2]
[373589168,1753055456790,-480.0,0.00019178,2]
[373589169,1753055456799,-476.04283521,0.00019178,2]
[373589170,1753055456809,-480.0,0.00019178,2]
[373589171,1753055456819,-480.0,0.00019178,2]
[373589172,1753055456828,-534.06,0.00019178,2]
[373589173,1753055456838,-480.0,0.00019178,2]
[373589174,1753055456848,-440.0,0.00019178,2]
[373589175,1753055456857,-480.0,0.00019178,2]
[373589176,1753055456868,-480.0,0.00019178,2]
[373589177,1753055456883,-480.0,0.00019178,2]
[373589178,1753055456892,-480.0,0.00019178,2]
[373589179,1753055456909,-480.0,0.00019178,2]
[373589180,1753055456920,-480.0,0.00019178,2]
[373589181,1753055456929,-481.91549662,0.00019178,2]
[373589182,1753055456938,-480.0,0.00019178,2]
[373589183,1753055456948,-480.0,0.00019178,2]
[373589184,1753055456957,-480.0,0.00019178,2]
[373589185,1753055456966,-480.0,0.00019178,2]
[373589186,1753055456976,-772.47,0.00019178,2]
[373589187,1753055456985,-462.19598826,0.00019178,2]
[373589188,1753055456994,-480.0,0.00019178,2]
[373589189,1753055457004,-480.0,0.00019178,2]
[373589190,1753055457014,-518.15703104,0.00019178,2]
[373589191,1753055457024,-480.0,0.00019178,2]
[373589192,1753055457034,-480.0,0.00019178,2]
[373589193,1753055457044,-490.0,0.00019178,2]
[373589194,1753055457054,-954.23,0.00019178,2]
[373589195,1753055457063,-480.0,0.00019178,2]
[373589196,1753055457073,-1097.85,0.00019178,2]
[373589197,1753055457083,-480.0,0.00019178,2]
[373589198,1753055457093,-1458.93,0.00019178,2]
[373589199,1753055457102,-480.0,0.00019178,2]
[373589200,1753055457112,-480.0,0.00019178,2]
[373589201,1753055457122,-981.72,0.00019178,2]
[373589202,1753055457132,-391.028917,0.00019178,2]
[373589203,1753055457142,-481.58,0.00019178,2]
[373589204,1753055457151,-480.0,0.00019178,2]
[373589205,1753055457161,-480.0,0.00019178,2]
[373589206,1753055457171,-441.2439368,0.00019178,2]
[373589207,1753055457180,-480.0,0.00019178,2]
[373589208,1753055457190,-480.0,0.00019178,2]
[373589209,1753055457199,-739.84,0.00019178,2]
[373589210,1753055457209,-480.0,0.00019178,2]
[373589211,1753055457219,-480.0,0.00019178,2]
[373589212,1753055457229,-480.0,0.00019178,2]
[373589213,1753055457239,-440.0,0.00019178,2]
[373589214,1753055457249,-637.76,0.00019178,2]
[373589215,1753055457258,-480.0,0.00019178,2]
[373589216,1753055457268,-460.0,0.00019178,2]
[373589217,1753055457279,-480.0,0.00019178,2]
[373589218,1753055457288,-660.09,0.00019178,2]
[373589219,1753055457298,-480.0,0.00019178,2]
[373589220,1753055457307,-480.0,0.00019178,2]
[373589221,1753055457317,-480.0,0.00019178,2]
[373589222,1753055457327,-1056.59,0.00019178,2]
[373589223,1753055457337,-480.0,0.00019178,2]
[373589224,1753055457347,-480.0,0.00019178,2]
[373589225,1753055457357,-480.0,0.00019178,2]
[373589226,1753055457367,-367.60008639,0.00019178,2]
[373589227,1753055457376,-440.0,0.00019178,2]
[373589228,1753055457386,-480.0,0.00019178,2]
[373589229,1753055457396,-480.0,0.00019178,2]
[373589230,1753055457405,-480.0,0.00019178,2]
[373589231,1753055457415,-480.0,0.00019178,2]
[373589232,1753055457425,-2106.67,0.00019178,2]
[373589233,1753055457434,-480.0,0.00019178,2]
[373589234,1753055457444,-480.0,0.00019178,2]
[373589235,1753055457454,-1177.27,0.00019178,2]
[373589236,1753055457463,-1042.68,0.00019178,2]
[373589237,1753055457473,-480.0,0.00019178,2]
[373589238,1753055457483,-480.0,0.00019178,2]
[373589239,1753055457492,-460.96681457,0.00019178,2]
[373589240,1753055457502,-480.0,0.00019178,2]
[373589241,1753055457511,-480.0,0.00019178,2]
[373589242,1753055457521,-480.0,0.00019178,2]
[373589243,1753055457531,-480.0,0.00019178,2]
[373589244,1753055457541,-480.0,0.00019178,2]
[373589246,1753055457550,-512.59,0.00019178,2]
[373589248,1753055457559,-480.0,0.00019178,2]
[373589250,1753055457569,-480.0,0.00019178,2]
[373589252,1753055457579,-1082.73,0.00019178,2]
[373589254,1753055457588,-480.0,0.00019178,2]
[373589256,1753055457598,-480.0,0.00019178,2]
[373589258,1753055457607,-480.0,0.00019178,2]
[373589260,1753055457617,-480.0,0.00019178,2]
[373589262,1753055457626,-618.4,0.00019178,2]
[373589264,1753055457636,-480.0,0.00019178,2]
[373589266,1753055457645,-443.63073303,0.00019178,2]
[373589268,1753055457654,-480.0,0.00019178,2]
[373589270,1753055457665,-480.0,0.00019178,2]
[373589272,1753055457675,-1150.76,0.00019178,2]
[373589274,1753055457685,-527.11520734,0.00019178,2]
[373589276,1753055457695,-480.0,0.00019178,2]
[373589278,1753055457705,-865.93,0.00019178,2]
[373589280,1753055457714,-725.55,0.00019178,2]
[373589282,1753055457724,-480.0,0.00019178,2]
[373589284,1753055457734,-460.0,0.00019178,2]
[373589286,1753055457750,-480.0,0.00019178,2]
[373589288,1753055457759,-480.0,0.00019178,2]
[373589290,1753055457771,-480.0,0.00019178,2]
[373589292,1753055457782,-480.0,0.00019178,2]
[373589294,1753055457792,-440.0,0.00019178,2]
[373589296,1753055457802,-480.0,0.00019178,2]
[373589299,1753055457811,-480.0,0.00019178,2]
[373589301,1753055457820,-1572.15,0.00019178,2]
[373589303,1753055457830,-480.0,0.00019178,2]
[373589305,1753055457840,-749.26,0.00019178,2]
[373589307,1753055457849,-2293.85,0.00019178,2]
[373589309,1753055457859,-480.0,0.00019178,2]
[373589311,1753055457869,-480.0,0.00019178,2]
[373589313,1753055457879,-480.0,0.00019178,2]
[373589315,1753055457888,-480.0,0.00019178,2]
[373589317,1753055457898,-587.44,0.00019178,2]
[373589319,1753055457907,-480.0,0.00019178,2]
[373589321,1753055457917,-477.46256774,0.00019178,2]
[373589323,1753055457927,-490.0,0.00019178,2]
[373589325,1753055457936,-480.0,0.00019178,2]
[373589327,1753055457946,-865.65,0.00019178,2]
[373589329,1753055457955,-629.68859624,0.00019178,2]
[373589331,1753055457964,-1259.0,0.00019178,2]
[373589333,1753055457975,-1033.02,0.00019178,2]
[373589335,1753055457984,-532.41101069,0.00019178,2]
[373589337,1753055457994,-601.75,0.00019178,2]
[373589339,1753055458003,-551.34375563,0.00019178,2]
[373589341,1753055458013,-953.1,0.00019178,2]
[373589343,1753055458025,-1336.39,0.00019178,2]
[373589345,1753055458034,-480.0,0.00019178,2]
[373589347,1753055458044,-480.0,0.00019178,2]
[373589349,1753055458053,-480.0,0.00019178,2]
[373589352,1753055458063,-480.0,0.00019178,2]
[373589354,1753055458072,-464.90949486,0.00019178,2]
[373589356,1753055458082,-480.0,0.00019178,2]
[373589358,1753055458091,-480.0,0.00019178,2]
[373589360,1753055458101,-850.35,0.00019178,2]
[373589362,1753055458110,-480.0,0.00019178,2]
[373589364,1753055458120,-1757.42,0.00019178,2]
[373589366,1753055458129,-917.93,0.00019178,2]
[373589368,1753055458139,-480.0,0.00019178,2]
[373589370,1753055458148,-480.0,0.00019178,2]
[373589372,1753055458158,-480.0,0.00019178,2]
[373589374,1753055458168,-480.0,0.00019178,2]
[373589376,1753055458178,-480.0,0.00019178,2]
[373589378,1753055458187,-480.0,0.00019178,2]
[373589380,1753055458198,-480.0,0.00019178,2]
[373589382,1753055458207,-480.0,0.00019178,2]
[373589384,1753055458217,-480.0,0.00019178,2]
[373589386,1753055458227,-480.0,0.00019178,2]
[373589388,1753055458236,-480.0,0.00019178,2]
[373589390,1753055458245,-480.0,0.00019178,2]
[373589392,1753055458256,-862.39,0.00019178,2]
[373589394,1753055458266,-480.0,0.00019178,2]
[373589396,1753055458278,-480.0,0.00019178,2]
[373589398,1753055458288,-480.0,0.00019178,2]
[373589400,1753055458298,-480.0,0.00019178,2]
[373589402,1753055458307,-480.0,0.00019178,2]
[373589404,1753055458318,-480.0,0.00019178,2]
[373589406,1753055458328,-538.32524247,0.00019178,2]
[373589408,1753055458337,-480.0,0.00019178,2]
[373589410,1753055458347,-440.0,0.00019178,2]
[373589412,1753055458356,-480.0,0.00019178,2]
[373589414,1753055458366,-480.0,0.00019178,2]
[373589416,1753055458376,-480.0,0.00019178,2]
[373589418,1753055458385,-658.91,0.00019178,2]
[373589420,1753055458395,-480.0,0.00019178,2]
[373589422,1753055458404,-480.0,0.00019178,2]
[373589424,1753055458414,-480.0,0.00019178,2]
[373589426,1753055458424,-461.29751074,0.00019178,2]
[373589428,1753055458433,-480.0,0.00019178,2]
[373589431,1753055458443,-609.01,0.00019178,2]
[373589433,1753055458453,-480.0,0.00019178,2]
[373589434,1753055458463,-480.0,0.00019178,2]
[373589435,1753055458473,-480.0,0.00019178,2]
[373589436,1753055458483,-460.0,0.00019178,2]
[373589437,1753055458493,-480.0,0.00019178,2]
[373589438,1753055458504,-826.89,0.00019178,2]
[373589439,1753055458514,-3180.24,0.00019178,2]
[373589440,1753055458525,-480.0,0.00019178,2]
[373589441,1753055458535,-4973.5,0.00019178,2]
[373589442,1753055458546,-480.0,0.00019178,2]
[373589443,1753055458560,-1373.17,0.00019178,2]
[373589444,1753055458570,-477.98543567,0.00019178,2]
[373589445,1753055458581,-480.0,0.00019178,2]
[373589446,1753055458591,-480.0,0.00019178,2]
[373589447,1753055458601,-480.0,0.00019178,2]
[373589448,1753055458611,-465.42146039,0.00019178,2]
[373589449,1753055458621,-480.0,0.00019178,2]
[373589450,1753055458630,-440.0,0.00019178,2]
[373589452,1753055458640,-480.0,0.00019178,2]
[373589454,1753055458650,-766.75,0.00019178,2]
[373589456,1753055458660,-442.67589659,0.00019178,2]
[373589458,1753055458669,-480.0,0.00019178,2]
[373589460,1753055458679,-480.0,0.00019178,2]
[373589462,1753055458689,-1144.59,0.00019178,2]
[373589464,1753055458699,-1350.41,0.00019178,2]
[373589466,1753055458709,-480.0,0.00019178,2]
[373589469,1753055458718,-500.0,0.00019178,2]
[373589471,1753055458729,-508.41476889,0.00019178,2]
[373589473,1753055458739,-555.11,0.00019178,2]
[373589475,1753055458755,-460.0,0.00019178,2]
[373589477,1753055458765,-480.0,0.00019178,2]
[373589479,1753055458774,-480.0,0.00019178,2]
[373589481,1753055458784,-480.0,0.00019178,2]
[373589483,1753055458794,-1658.82,0.00019178,2]
[373589485,1753055458804,-480.0,0.00019178,2]
[373589487,1753055458814,-614.53,0.00019178,2]
[373589489,1753055458826,-1190.75,0.00019178,2]
[373589491,1753055458837,-1307.47,0.00019178,2]
[373589493,1753055458847,-480.0,0.00019178,2]
[373589495,1753055458857,-460.0,0.00019178,2]
[373589497,1753055458867,-1450.15,0.00019178,2]
[373589499,1753055458877,-480.0,0.00019178,2]
[373589501,1753055458887,-480.0,0.00019178,2]
[373589503,1753055458897,-480.0,0.00019178,2]
[373589505,1753055458907,-480.0,0.00019178,2]
[373589507,1753055458916,-480.0,0.00019178,2]
[373589509,1753055458926,-1068.24,0.00019178,2]
[373589512,1753055458935,-850.85,0.00019178,2]
[373589514,1753055458945,-482.85785919,0.00019178,2]
[373589516,1753055458955,-480.0,0.00019178,2]
[373589518,1753055458964,-2195.9,0.00019178,2]
[373589520,1753055458974,-480.0,0.00019178,2]
[373589522,1753055458984,-480.0,0.00019178,2]
[373589524,1753055458993,-671.94,0.00019178,2]
[373589526,1753055459003,-482.48907408,0.00019178,2]
[373589528,1753055459013,-480.0,0.00019178,2]
[373589530,1753055459022,-480.0,0.00019178,2]
[373589532,1753055459032,-480.0,0.00019178,2]
[373589534,1753055459042,-566.65,0.00019178,2]
[373589536,1753055459052,-480.0,0.00019178,2]
[373589538,1753055459061,-480.0,0.00019178,2]
[373589540,1753055459071,-480.0,0.00019178,2]
[373589542,1753055459081,-480.0,0.00019178,2]
[373589544,1753055459090,-480.0,0.00019178,2]
[373589546,1753055459100,-741.55,0.00019178,2]
[373589548,1753055459110,-611.63,0.00019178,2]
[373589550,1753055459119,-480.0,0.00019178,2]
[373589552,1753055459129,-480.0,0.00019178,2]
[373589555,1753055459139,-1191.53,0.00019178,2]
[373589557,1753055459149,-480.0,0.00019178,2]
[373589559,1753055459158,-480.0,0.00019178,2]
[373589561,1753055459168,-480.0,0.00019178,2]
[373589563,1753055459177,-480.0,0.00019178,2]
[373589565,1753055459187,-480.0,0.00019178,2]
[373589567,1753055459197,-480.0,0.00019178,2]
[373589569,1753055459207,-996.3,0.00019178,2]
[373589571,1753055459217,-480.0,0.00019178,2]
[373589603,1753055459489,-219.27827076,0.00019178,2]
[373589605,1753055459510,-566.48,0.00019178,2]
[373589607,1753055459520,-480.0,0.00019178,2]
[373589609,1753055459529,-480.0,0.00019178,2]
[373589611,1753055459539,-480.0,0.00019178,2]
[373589613,1753055459548,-480.0,0.00019178,2]
[373589615,1753055459558,-480.0,0.00019178,2]
[373589617,1753055459567,-480.0,0.00019178,2]
[373589619,1753055459577,-517.45,0.00019178,2]
[373589621,1753055459586,-1698.74,0.00019178,2]
[373589623,1753055459596,-2386.97,0.00019178,2]
[373589626,1753055459605,-480.0,0.00019178,2]
[373589628,1753055459615,-3864.18,0.00019178,2]
[373589630,1753055459624,-8107.22,0.00019178,2]
[373589632,1753055459633,-480.0,0.00019178,2]
[373589634,1753055459643,-480.0,0.00019178,2]
[373589636,1753055459652,-480.0,0.00019178,2]
[373589638,1753055459661,-480.0,0.00019178,2]
[373589640,1753055459670,-945.51,0.00019178,2]
[373589642,1753055459680,-663.89,0.00019178,2]
[373589644,1753055459689,-480.0,0.00019178,2]
[373589646,1753055459698,-480.0,0.00019178,2]
[373589648,1753055459708,-480.0,0.00019178,2]
[373589650,1753055459717,-480.0,0.00019178,2]
[373589652,1753055459727,-480.0,0.00019178,2]
[373589654,1753055459736,-1066.56,0.00019178,2]
[373589656,1753055459748,-480.0,0.00019178,2]
[373589658,1753055459758,-513.16,0.00019178,2]
[373589660,1753055459767,-480.0,0.00019178,2]
[373589662,1753055459777,-480.0,0.00019178,2]
[373589664,1753055459787,-480.0,0.00019178,2]
[373589666,1753055459797,-480.0,0.00019178,2]
[373589668,1753055459806,-480.0,0.00019178,2]
[373589670,1753055459815,-500.0,0.00019178,2]
[373589672,1753055459825,-500.0,0.00019178,2]
[373589674,1753055459834,-500.0,0.00019178,2]
[373589676,1753055459843,-500.0,0.00019178,2]
[373589678,1753055459852,-480.0,0.00019178,2]
[373589680,1753055459862,-480.0,0.00019178,2]
[373589682,1753055459871,-530.44,0.00019178,2]
[373589684,1753055459880,-729.2,0.00019178,2]
[373589686,1753055459890,-846.49,0.00019178,2]
[373589688,1753055459899,-480.0,0.00019178,2]
[373589690,1753055459908,-480.0,0.00019178,2]
[373589692,1753055459917,-461.41048171,0.00019178,2]
[373589694,1753055459927,-4546.29,0.00019178,2]
[373589696,1753055459936,-480.0,0.00019178,2]
[373589698,1753055459945,-1554.92,0.00019178,2]
[373589700,1753055459954,-480.0,0.00019178,2]
[373589702,1753055459963,-800.06,0.00019178,2]
[373589704,1753055459973,-480.0,0.00019178,2]
[373589706,1753055459982,-480.0,0.00019178,2]
[373589708,1753055459991,-500.0,0.00019178,2]
[373589710,1753055460000,-500.0,0.00019178,2]
[373589712,1753055460010,-1859.83,0.00019178,2]
[373589714,1753055460019,-500.0,0.00019178,2]
[373589716,1753055460030,-500.0,0.00019178,2]
[373589718,1753055460040,-439.72234391,0.00019178,2]
[373589720,1753055460049,-480.0,0.00019178,2]
[373589722,1753055460059,-500.0,0.00019178,2]
[373589724,1753055460068,-500.0,0.00019178,2]
[373589726,1753055460078,-480.0,0.00019178,2]
[373589728,1753055460087,-618.8,0.00019178,2]
[373589730,1753055460097,-480.0,0.00019178,2]
[373589732,1753055460106,-1133.03,0.00019178,2]
[373589734,1753055460115,-888.11,0.00019178,2]
[373589735,1753055460125,-480.0,0.00019178,2]
[373589736,1753055460134,-480.0,0.00019178,2]
[373589737,1753055460143,-480.0,0.00019178,2]
[373589738,1753055460152,-440.0,0.00019178,2]
[373589739,1753055460161,-548.54,0.00019178,2]
[373589740,1753055460170,-480.0,0.00019178,2]
[373589741,1753055460179,-440.0,0.00019178,2]
[373589742,1753055460189,-775.2,0.00019178,2]
[373589743,1753055460198,-1073.63,0.00019178,2]
[373589744,1753055460207,-480.0,0.00019178,2]
[373589745,1753055460217,-886.56,0.00019178,2]
[373589746,1753055460226,-440.0,0.00019178,2]
[373589748,1753055460236,-480.0,0.00019178,2]
[373589750,1753055460245,-2149.1,0.00019178,2]
[373589752,1753055460255,-480.0,0.00019178,2]
[373589754,1753055460264,-480.0,0.00019178,2]
[373589756,1753055460275,-480.0,0.00019178,2]
[373589758,1753055460285,-480.0,0.00019178,2]
[373589760,1753055460294,-3977.95,0.00019178,2]
[373589762,1753055460304,-5000.0,0.00019178,2]
[373589764,1753055460313,-5000.0,0.00019178,2]
[373589766,1753055460323,-5000.0,0.00019178,2]
[373589768,1753055460332,-5039.0320852,0.00019178,2]
[373589770,1753055460342,-480.0,0.00019178,2]
[373589772,1753055460351,-927.74,0.00019178,2]
[373589774,1753055460361,-480.0,0.00019178,2]
[373589776,1753055460370,-974.5,0.00019178,2]
[373589778,1753055460379,-480.0,0.00019178,2]
[373589780,1753055460389,-480.0,0.00019178,2]
[373589782,1753055460398,-504.05,0.00019178,2]
[373589784,1753055460408,-480.0,0.00019178,2]
[373589786,1753055460417,-562.45,0.00019178,2]
[373589788,1753055460426,-555.78741204,0.00019178,2]
[373589790,1753055460436,-480.0,0.00019178,2]
[373589792,1753055460445,-874.56,0.00019178,2]
[373589794,1753055460455,-480.0,0.00019178,2]
[373589796,1753055460464,-480.0,0.00019178,2]
[373589797,1753055460473,-500.0,0.00019178,2]
[373589799,1753055460483,-1406.05,0.00019178,2]
[373589801,1753055460492,-500.0,0.00019178,2]
[373589803,1753055460501,-500.0,0.00019178,2]
[373589805,1753055460511,-500.0,0.00019178,2]
[373589807,1753055460521,-500.0,0.00019178,2]
[373589809,1753055460535,-1900.03,0.00019178,2]
[373589811,1753055460544,-480.0,0.00019178,2]
[373589813,1753055460554,-500.0,0.00019178,2]
[373589815,1753055460563,-500.0,0.00019178,2]
[373589817,1753055460572,-500.0,0.00019178,2]
[373589819,1753055460581,-500.0,0.00019178,2]
[373589821,1753055460591,-500.0,0.00019178,2]
[373589823,1753055460600,-500.0,0.00019178,2]
[373589825,1753055460610,-500.0,0.00019178,2]
[373589827,1753055460619,-500.0,0.00019178,2]
[373589829,1753055460628,-500.0,0.00019178,2]
[373589831,1753055460638,-500.0,0.00019178,2]
[373589833,1753055460647,-500.0,0.00019178,2]
[373589835,1753055460657,-525.6624832,0.00019178,2]
[373589837,1753055460666,-480.0,0.00019178,2]
[373589839,1753055460676,-480.0,0.00019178,2]
[373589841,1753055460686,-480.0,0.00019178,2]
[373589843,1753055460695,-500.0,0.00019178,2]
[373589845,1753055460704,-2845.77,0.00019178,2]
[373589847,1753055460714,-480.0,0.00019178,2]
[373589849,1753055460724,-496.31,0.00019178,2]
[373589851,1753055460734,-480.0,0.00019178,2]
[373589853,1753055460747,-480.0,0.00019178,2]
[373589855,1753055460757,-480.0,0.00019178,2]
[373589857,1753055460767,-480.0,0.00019178,2]
[373589859,1753055460777,-480.0,0.00019178,2]
[373589861,1753055460786,-746.26,0.00019178,2]
[373589863,1753055460796,-480.0,0.00019178,2]
[373589865,1753055460805,-480.0,0.00019178,2]
[373589867,1753055460814,-480.0,0.00019178,2]
[373589869,1753055460824,-480.0,0.00019178,2]
[373589871,1753055460833,-480.0,0.00019178,2]
[373589873,1753055460842,-878.11,0.00019178,2]
[373589875,1753055460852,-480.0,0.00019178,2]
[373589877,1753055460861,-400.0,0.00019178,2]
[373589879,1753055460871,-480.0,0.00019178,2]
[373589881,1753055460880,-480.0,0.00019178,2]
[373589883,1753055460889,-500.0,0.00019178,2]
[373589884,1753055460899,-500.0,0.00019178,2]
[373589886,1753055460910,-500.0,0.00019178,2]
[373589888,1753055460919,-480.0,0.00019178,2]
[373589890,1753055460929,-483.43491057,0.00019178,2]
[373589893,1753055460938,-500.0,0.00019178,2]
[373589895,1753055460948,-500.0,0.00019178,2]
[373589897,1753055460957,-500.0,0.00019178,2]
[373589899,1753055460967,-500.0,0.00019178,2]
[373589901,1753055460976,-480.0,0.00019178,2]
[373589902,1753055460985,-500.0,0.00019178,2]
[373589904,1753055460995,-740.16,0.00019178,2]
[373589907,1753055461005,-500.0,0.00019178,2]
[373589909,1753055461014,-500.0,0.00019178,2]
[373589911,1753055461023,-480.0,0.00019178,2]
[373589913,1753055461035,-500.0,0.00019178,2]
[373589914,1753055461044,-460.82545693,0.00019178,2]
[373589916,1753055461053,-500.0,0.00019178,2]
[373589918,1753055461063,-500.0,0.00019178,2]
[373589920,1753055461072,-480.0,0.00019178,2]
[373589922,1753055461082,-480.0,0.00019178,2]
[373589924,1753055461091,-556.69,0.00019178,2]
[373589926,1753055461100,-480.0,0.00019178,2]
[373589928,1753055461110,-480.0,0.00019178,2]
[373589930,1753055461119,-787.48,0.00019178,2]
[373589932,1753055461129,-480.0,0.00019178,2]
[373589934,1753055461138,-1336.05,0.00019178,2]
[373589936,1753055461148,-480.0,0.00019178,2]
[373589938,1753055461157,-480.0,0.00019178,2]
[373589940,1753055461166,-480.0,0.00019178,2]
[373589942,1753055461175,-480.0,0.00019178,2]
[373589944,1753055461185,-1705.21,0.00019178,2]
[373589946,1753055461194,-480.0,0.00019178,2]
[373589948,1753055461204,-754.23,0.00019178,2]
[373589950,1753055461213,-1712.3,0.00019178,2]
[373589952,1753055461223,-1341.37,0.00019178,2]
[373589954,1753055461232,-480.0,0.00019178,2]
[373589956,1753055461242,-775.44,0.00019178,2]
[373589958,1753055461251,-480.0,0.00019178,2]
[373589960,1753055461260,-460.0,0.00019178,2]
[373589962,1753055461270,-480.0,0.00019178,2]
[373589964,1753055461282,-425.37741346,0.00019178,2]
[373589966,1753055461291,-9042.14,0.00019178,2]
[373589968,1753055461301,-480.0,0.00019178,2]
[373589970,1753055461310,-480.0,0.00019178,2]
[373589972,1753055461319,-498.91380861,0.00019178,2]
[373589974,1753055461330,-1140.08,0.00019178,2]
[373589976,1753055461339,-480.0,0.00019178,2]
[373589978,1753055461348,-579.3,0.00019178,2]
[373589980,1753055461357,-480.0,0.00019178,2]
[373589982,1753055461367,-480.0,0.00019178,2]
[373589984,1753055461376,-799.74,0.00019178,2]
[373589986,1753055461386,-480.0,0.00019178,2]
[373589988,1753055461395,-480.0,0.00019178,2]
[373589990,1753055461406,-480.0,0.00019178,2]
[373589992,1753055461416,-480.0,0.00019178,2]
[373589994,1753055461424,-480.0,0.00019178,2]
[373589995,1753055461434,-480.0,0.00019178,2]
[373589997,1753055461443,-480.0,0.00019178,2]
[373589999,1753055461452,-480.0,0.00019178,2]
[373590001,1753055461462,-480.0,0.00019178,2]
[373590003,1753055461471,-677.35,0.00019178,2]
[373590005,1753055461480,-842.64,0.00019178,2]
[373590007,1753055461489,-6146.34,0.00019178,2]
[373590009,1753055461498,-734.28,0.00019178,2]
[373590011,1753055461508,-706.59,0.00019178,2]
[373590013,1753055461518,-480.0,0.00019178,2]
[373590015,1753055461527,-4993.51,0.00019178,2]
[373590017,1753055461536,-480.0,0.00019178,2]
[373590019,1753055461546,-480.0,0.00019178,2]
[373590021,1753055461555,-480.0,0.00019178,2]
[373590023,1753055461565,-480.0,0.00019178,2]
[373590025,1753055461575,-480.0,0.00019178,2]
[373590027,1753055461584,-1566.11,0.00019178,2]
[373590029,1753055461593,-480.0,0.00019178,2]
[373590031,1753055461603,-5552.39,0.00019178,2]
[373590033,1753055461612,-482.32,0.00019178,2]
[373590035,1753055461621,-739.01,0.00019178,2]
[373590037,1753055461631,-480.0,0.00019178,2]
[373590039,1753055461640,-480.0,0.00019178,2]
[373590041,1753055461649,-641.48,0.00019178,2]
[373590043,1753055461659,-480.0,0.00019178,2]
[373590045,1753055461668,-513.24623663,0.00019178,2]
[373590047,1753055461677,-480.0,0.00019178,2]
[373590049,1753055461686,-480.0,0.00019178,2]
[373590051,1753055461696,-480.0,0.00019178,2]
[373590053,1753055461705,-480.0,0.00019178,2]
[373590055,1753055461715,-480.0,0.00019178,2]
[373590057,1753055461724,-480.0,0.00019178,2]
[373590059,1753055461734,-422.09787946,0.00019178,2]
[373590061,1753055461746,-480.0,0.00019178,2]
[373590063,1753055461758,-496.3,0.00019178,2]
[373590065,1753055461767,-628.40815714,0.00019178,2]
[373590067,1753055461778,-570.59,0.00019178,2]
[373590069,1753055461789,-480.0,0.00019178,2]
[373590071,1753055461798,-480.0,0.00019178,2]
[373590073,1753055461807,-480.0,0.00019178,2]
[373590075,1753055461819,-1082.49,0.00019178,2]
[373590077,1753055461828,-480.0,0.00019178,2]
[373590079,1753055461837,-480.0,0.00019178,2]
[373590081,1753055461846,-2668.7,0.00019178,2]
[373590083,1753055461855,-480.0,0.00019178,2]